bitfinex/quotes_SOLUSD_20230110
["timestamp","ask_amount","ask_price","bid_price","bid_amount"]
[1673393552158,38.55825296,16.243,16.226,20.0]
[1673393552367,17.0,16.242,16.226,20.0]
[1673393553756,17.0,16.242,16.228,20.0]
[1673393554354,35.55825296,16.242,16.228,20.0]
[1673393554780,17.0,16.242,16.228,20.0]
[1673393555109,17.0,16.242,16.227,108.568]
[1673393555617,18.55825296,16.241,16.227,108.568]
[1673393555830,17.0,16.24,16.228,20.0]
[1673393557832,17.0,16.24,16.229,20.0]
[1673393558043,20.1406127,16.244,16.23,20.0]
[1673393558354,17.0,16.243,16.232,20.0]
[1673393558565,17.0,16.243,16.233,113.1747]
[1673393558790,17.0,16.243,16.234,20.0]
[1673393559103,17.0,16.243,16.229,37.0]
[1673393559104,129.42,16.24,16.223,145.9595537]
[1673393559316,184.0,16.238,16.223,259.1342537]
[1673393559505,46.21,16.237,16.223,259.1342537]
[1673393559715,20.0,16.235,16.223,259.1342537]
[1673393559939,83.22,16.234,16.223,259.1342537]
[1673393560135,20.0,16.233,16.223,259.1342537]
[1673393560456,35.55825296,16.232,16.223,259.1342537]
[1673393560887,18.55825296,16.231,16.223,259.1342537]
[1673393561096,17.0,16.23,16.223,259.1342537]
[1673393561315,17.0,16.23,16.223,145.9595537]
[1673393562046,20.0,16.229,16.223,145.9595537]
[1673393562577,17.0,16.228,16.223,145.9595537]
[1673393567286,148.52825296,16.23,16.223,145.9595537]
[1673393568046,20.0,16.229,16.223,145.9595537]
[1673393568881,17.0,16.228,16.223,145.9595537]
[1673393570882,17.0,16.229,16.223,145.9595537]
[1673393571613,72.26,16.23,16.223,145.9595537]
[1673393571812,26.03,16.23,16.223,145.9595537]
[1673393572996,17.0,16.229,16.223,145.9595537]
[1673393576687,26.03,16.23,16.223,145.9595537]
[1673393576869,20.0,16.234,16.224,20.0]
[1673393577086,20.0,16.235,16.224,20.0]
[1673393577841,20.0,16.236,16.224,20.0]
[1673393578168,20.0,16.235,16.224,20.0]
[1673393578680,40.0,16.236,16.224,20.0]
[1673393579916,17.0,16.235,16.224,20.0]
[1673393580239,20.0,16.234,16.224,20.0]
[1673393580556,17.0,16.233,16.224,20.0]
[1673393581514,20.0,16.234,16.224,20.0]
[1673393581808,46.21,16.24,16.224,20.0]
[1673393582020,46.18,16.248,16.224,20.0]
[1673393582239,18.55825296,16.242,16.224,20.0]
[1673393582450,20.0,16.241,16.224,20.0]
[1673393582861,18.55825296,16.24,16.224,20.0]
[1673393583617,17.0,16.239,16.224,20.0]
[1673393584675,18.55825296,16.24,16.224,20.0]
[1673393585289,184.0,16.239,16.223,145.9595537]
[1673393585504,25.7,16.23,16.223,145.9595537]
[1673393586138,17.0,16.229,16.223,145.9595537]
[1673393586337,46.22,16.236,16.223,145.9595537]
[1673393586535,37.0,16.235,16.223,145.9595537]
[1673393586753,46.22,16.234,16.224,20.0]
[1673393586965,37.0,16.233,16.224,20.0]
[1673393587177,17.0,16.233,16.224,20.0]
[1673393587376,17.0,16.234,16.224,20.0]
[1673393587595,20.0,16.233,16.224,20.0]
[1673393588656,20.0,16.234,16.224,20.0]
[1673393588869,66.21,16.237,16.224,20.0]
[1673393589266,66.21,16.237,16.223,145.9595537]
[1673393589493,20.0,16.236,16.223,145.9595537]
[1673393589711,46.22,16.235,16.223,145.9595537]
[1673393589906,37.0,16.234,16.223,145.9595537]
[1673393593068,46.21,16.237,16.224,20.0]
[1673393593268,46.19,16.244,16.224,20.0]
[1673393593480,20.0,16.243,16.224,20.0]
[1673393593692,25.93,16.24,16.224,20.0]
[1673393594850,17.0,16.239,16.224,20.0]
[1673393595280,25.93,16.24,16.224,20.0]
[1673393597686,17.0,16.239,16.224,20.0]
[1673393600636,46.2,16.242,16.224,20.0]
[1673393601381,20.0,16.243,16.224,20.0]
[1673393601688,20.0,16.244,16.224,20.0]
[1673393601894,63.2,16.243,16.224,20.0]
[1673393602102,184.0,16.242,16.224,20.0]
[1673393602333,25.93,16.23,16.223,145.9595537]
[1673393602545,46.24,16.229,16.223,145.9595537]
[1673393602752,17.0,16.228,16.223,145.9595537]
[1673393603174,17.0,16.229,16.223,145.9595537]
[1673393603803,63.24,16.229,16.223,145.9595537]
[1673393603993,17.0,16.229,16.223,145.9595537]
[1673393611481,20.0,16.228,16.223,145.9595537]
[1673393611681,17.0,16.227,16.223,145.9595537]
[1673393611895,17.0,16.229,16.223,145.9595537]
[1673393612204,20.0,16.228,16.223,145.9595537]
[1673393612527,17.0,16.227,16.223,145.9595537]
[1673393613149,17.0,16.227,16.223,10.8892537]
[1673393613150,274.65467707,16.226,16.223,10.8892537]
[1673393613354,63.25,16.225,16.223,10.8892537]
[1673393613551,20.0,16.224,16.223,10.8892537]
[1673393613781,83.25,16.224,16.223,10.8892537]
[1673393614004,103.25,16.224,16.223,10.8892537]
[1673393614186,83.25,16.224,16.223,10.8892537]
[1673393614817,83.25,16.224,16.213,20.0]
[1673393615024,25.93,16.22,16.212,118.4342]
[1673393616816,17.0,16.219,16.212,118.4342]
[1673393617671,17.0,16.219,16.206,20.0]
[1673393617873,17.0,16.219,16.208,20.0]
[1673393618426,17.0,16.219,16.21,20.0]
[1673393618731,17.0,16.219,16.208,20.0]
[1673393619055,20.0,16.224,16.21,20.0]
[1673393619486,129.07,16.22,16.2,115.6665919]
[1673393619688,46.27,16.219,16.205,20.676358]
[1673393620016,20.0,16.219,16.205,20.676358]
[1673393620407,25.7,16.21,16.205,20.676358]
[1673393621049,17.0,16.209,16.205,20.676358]
[1673393621977,25.7,16.21,16.205,20.676358]
[1673393622195,46.27,16.216,16.205,20.676358]
[1673393622442,37.0,16.215,16.205,20.676358]
[1673393623246,37.0,16.215,16.201,20.0]
[1673393623695,25.93,16.21,16.2,1.1442919]
[1673393623872,17.0,16.209,16.2,111.3316919]
[1673393625242,17.0,16.209,16.2,1.1442919]
[1673393626494,17.0,16.209,16.198,19.6442919]
[1673393629364,17.0,16.209,16.197,232.4490383]
[1673393629674,35.55825296,16.209,16.197,232.4490383]
[1673393631775,35.55825296,16.209,16.198,20.0]
[1673393632187,81.84825296,16.209,16.197,232.4490383]
[1673393633045,20.0,16.208,16.197,232.4490383]
[1673393633248,17.0,16.207,16.198,0.30868]
[1673393633469,20.0,16.206,16.198,0.30868]
[1673393633772,17.0,16.205,16.198,0.30868]
[1673393634197,35.55825296,16.205,16.198,0.30868]
[1673393634402,1.5,16.204,16.198,0.30868]
[1673393634732,35.55825296,16.205,16.198,0.30868]
[1673393637760,129.69,16.21,16.198,20.30868]
[1673393637972,18.55825296,16.208,16.198,20.30868]
[1673393638830,129.69,16.21,16.198,20.30868]
[1673393640693,129.69,16.21,16.198,0.30868]
[1673393641134,25.71,16.21,16.198,20.30868]
[1673393641325,25.71,16.21,16.198,0.30868]
[1673393641546,25.71,16.21,16.198,20.30868]
[1673393642843,46.27,16.218,16.198,20.30868]
[1673393643039,46.27,16.219,16.2,25.85]
[1673393643348,44.57825296,16.22,16.201,160.2376]
[1673393644182,20.0,16.219,16.201,160.2376]
[1673393644402,66.27,16.219,16.201,160.2376]
[1673393644592,18.55825296,16.218,16.201,160.2376]
[1673393645223,46.27,16.219,16.201,160.2376]
[1673393645449,129.78,16.22,16.201,160.2376]
[1673393645880,20.0,16.219,16.201,160.2376]
[1673393646185,313.97,16.21,16.198,0.30868]
[1673393646511,46.29,16.209,16.198,0.30868]
[1673393646813,20.0,16.208,16.198,0.30868]
[1673393647033,63.3,16.207,16.198,0.30868]
[1673393648820,81.85825296,16.207,16.198,0.30868]
[1673393649004,63.3,16.207,16.198,0.30868]
[1673393649334,18.55825296,16.206,16.198,0.30868]
[1673393649536,20.0,16.204,16.198,0.30868]
[1673393649746,63.31,16.203,16.198,0.30868]
[1673393650075,20.0,16.202,16.198,0.30868]
[1673393650275,63.32,16.201,16.198,0.30868]
[1673393650490,81.87825296,16.201,16.198,0.30868]
[1673393650677,35.55825296,16.201,16.198,0.30868]
[1673393651333,35.55825296,16.201,16.197,207.7507683]
[1673393651547,64.87825296,16.2,16.197,207.7507683]
[1673393651854,17.0,16.199,16.197,207.7507683]
[1673393652382,46.31,16.203,16.197,207.7507683]
[1673393652613,46.31,16.204,16.197,207.7507683]
[1673393652781,18.55825296,16.201,16.197,207.7507683]
[1673393653649,17.0,16.2,16.197,207.7507683]
[1673393654167,35.55825296,16.2,16.197,207.7507683]
[1673393654380,18.55825296,16.2,16.197,207.7507683]
[1673393655733,17.0,16.199,16.197,207.7507683]
[1673393656640,254.42083526,16.205,16.192,24.706368]
[1673393656641,18.55825296,16.198,16.192,24.706368]
[1673393656913,18.55825296,16.198,16.164,119.3455]
[1673393656914,46.85737116,16.186,16.164,119.3455]
[1673393657154,20.0,16.185,16.174,3.5431022]
[1673393657319,2.4484515,16.184,16.174,3.5431022]
[1673393657530,25.7,16.18,16.174,3.5431022]
[1673393657740,2.5,16.179,16.174,3.5431022]
[1673393658169,52.54661982,16.185,16.174,3.5431022]
[1673393658170,2.5,16.185,16.174,3.5431022]
[1673393658399,2.5,16.185,16.174,189.1598215]
[1673393658593,2.5,16.185,16.175,20.0]
[1673393660382,46.85737116,16.186,16.175,20.0]
[1673393660786,1.63154322,16.185,16.174,189.1598215]
[1673393660996,18.63154322,16.185,16.174,189.1598215]
[1673393661431,17.0,16.185,16.175,20.0]
[1673393661632,1.59059042,16.184,16.175,20.0]
[1673393662045,46.85737116,16.186,16.175,20.0]
[1673393663525,46.85737116,16.186,16.176,1.803]
[1673393664896,46.85737116,16.186,16.176,18.803]
[1673393665111,46.85737116,16.186,16.177,20.0]
[1673393665422,46.85737116,16.186,16.178,18.12]
[1673393665639,46.85737116,16.186,16.179,20.0]
[1673393665828,46.85737116,16.186,16.18,20.99]
[1673393666247,46.85737116,16.186,16.181,20.0]
[1673393666690,46.85737116,16.186,16.181,40.0]
[1673393667103,0.00737116,16.186,16.182,20.0]
[1673393667428,100.18923482,16.193,16.184,20.0]
[1673393667635,93.56233482,16.193,16.185,28.2]
[1673393667817,73.99053482,16.193,16.185,28.2]
[1673393668042,73.99053482,16.193,16.184,20.0]
[1673393668476,73.99053482,16.193,16.184,205.6167193]
[1673393668687,3.482e-05,16.193,16.184,205.6167193]
[1673393670171,3.482e-05,16.193,16.185,20.0]
[1673393670362,3.482e-05,16.193,16.186,17.0]
[1673393670579,3.482e-05,16.193,16.187,20.0]
[1673393670888,3.482e-05,16.193,16.188,17.0]
[1673393671110,3.482e-05,16.193,16.189,20.0]
[1673393671414,3.482e-05,16.193,16.19,17.0]
[1673393671599,3.482e-05,16.193,16.191,40.0]
[1673393671809,3.482e-05,16.193,16.189,47.35605321]
[1673393672053,3.482e-05,16.193,16.186,20.0]
[1673393672246,26.03,16.21,16.186,20.0]
[1673393672445,26.03,16.21,16.19,25.85]
[1673393672655,26.03,16.21,16.191,20.0]
[1673393672868,46.29,16.209,16.192,20.0]
[1673393673622,46.29,16.209,16.193,1.806]
[1673393674234,46.29,16.209,16.194,116.8159]
[1673393674451,17.0,16.208,16.195,20.0]
[1673393675201,18.55825296,16.207,16.194,185.6167193]
[1673393675390,130.03,16.2,16.194,55.0528193]
[1673393675729,20.0,16.198,16.194,45.0528193]
[1673393675938,20.0,16.196,16.194,45.0528193]
[1673393676251,66.33,16.195,16.194,45.0528193]
[1673393676459,66.33,16.195,16.194,0.0028193]
[1673393676460,101.88825296,16.195,16.194,0.0028193]
[1673393676984,63.33,16.195,16.194,0.0028193]
[1673393677189,17.0,16.195,16.194,0.0028193]
[1673393678352,17.0,16.196,16.194,0.0028193]
[1673393678962,18.55825296,16.197,16.194,0.0028193]
[1673393679403,18.55825296,16.197,16.182,130.5195193]
[1673393679637,46.32,16.199,16.182,130.5195193]
[1673393679838,20.0,16.199,16.182,130.5195193]
[1673393680361,26.24,16.2,16.183,17.0]
[1673393680781,46.31,16.203,16.184,20.0]
[1673393681309,46.29,16.209,16.185,37.0]
[1673393681519,46.29,16.209,16.185,153.342]
[1673393681714,64.84825296,16.209,16.186,20.0]
[1673393681932,84.98886566,16.209,16.187,37.0]
[1673393682357,17.0,16.208,16.188,20.0]
[1673393682566,17.0,16.208,16.189,20.0]
[1673393682783,20.0,16.207,16.189,20.0]
[1673393682995,17.0,16.206,16.189,20.0]
[1673393683395,37.1406127,16.206,16.189,20.0]
[1673393684151,17.0,16.206,16.189,20.0]
[1673393684362,63.3,16.206,16.189,20.0]
[1673393684885,46.3,16.206,16.189,20.0]
[1673393686043,18.55825296,16.207,16.19,20.0]
[1673393686232,18.55825296,16.207,16.192,20.0]
[1673393686455,18.55825296,16.207,16.193,108.1274]
[1673393686669,46.3,16.206,16.193,109.8974]
[1673393687178,46.3,16.206,16.193,108.1274]
[1673393687400,17.0,16.205,16.193,108.1274]
[1673393687833,17.0,16.205,16.194,20.0]
[1673393690469,17.0,16.206,16.194,20.0]
[1673393691933,17.0,16.206,16.193,108.1274]
[1673393693175,63.3,16.207,16.193,108.1274]
[1673393693600,17.0,16.207,16.193,108.1274]
[1673393694982,17.0,16.207,16.194,20.0]
[1673393695501,17.0,16.208,16.194,20.0]
[1673393695921,35.55825296,16.208,16.194,20.0]
[1673393696124,46.29,16.209,16.194,20.0]
[1673393696328,26.24,16.21,16.194,20.0]
[1673393699902,17.0,16.209,16.194,20.0]
[1673393700749,63.29,16.209,16.194,20.0]
[1673393702109,63.29,16.209,16.195,1.94]
[1673393702321,46.29,16.212,16.195,18.94]
[1673393702517,46.28,16.215,16.197,20.0]
[1673393702727,46.27,16.219,16.201,20.0]
[1673393702968,46.27,16.219,16.202,6.363]
[1673393703375,46.27,16.219,16.203,17.0]
[1673393703576,46.27,16.219,16.205,20.0]
[1673393705267,46.26,16.22,16.205,20.0]
[1673393705495,46.26,16.22,16.204,30.88]
[1673393705719,20.0,16.219,16.203,114.8667]
[1673393705914,46.27,16.218,16.203,114.8667]
[1673393706146,17.0,16.217,16.203,114.8667]
[1673393706321,46.27,16.216,16.203,114.8667]
[1673393706535,17.0,16.215,16.203,114.8667]
[1673393707289,46.27,16.218,16.203,114.8667]
[1673393708865,17.0,16.217,16.203,114.8667]
[1673393709075,17.0,16.217,16.204,20.0]
[1673393710549,46.27,16.216,16.204,20.0]
[1673393710775,17.0,16.215,16.204,20.0]
[1673393710953,17.0,16.217,16.204,20.0]
[1673393712334,17.0,16.218,16.204,20.0]
[1673393713997,46.27,16.217,16.204,20.0]
[1673393714315,17.0,16.216,16.204,20.0]
[1673393715470,63.27,16.217,16.204,20.0]
[1673393720558,17.0,16.217,16.204,20.0]
[1673393720754,46.27,16.216,16.204,20.0]
[1673393720966,17.0,16.215,16.204,20.0]
[1673393721601,17.0,16.216,16.204,20.0]
[1673393722227,63.27,16.217,16.204,20.0]
[1673393722846,17.0,16.217,16.204,20.0]
[1673393723057,17.0,16.218,16.204,20.0]
[1673393723282,46.27,16.217,16.204,20.0]
[1673393723495,17.0,16.216,16.204,20.0]
[1673393724150,63.27,16.217,16.204,20.0]
[1673393725052,17.0,16.217,16.204,20.0]
[1673393725263,17.0,16.218,16.204,20.0]
[1673393725467,46.27,16.217,16.204,20.0]
[1673393725683,17.0,16.216,16.204,20.0]
[1673393726431,63.27,16.217,16.204,20.0]
[1673393726627,17.0,16.217,16.204,20.0]
[1673393726844,17.0,16.218,16.204,20.0]
[1673393727050,46.27,16.217,16.204,20.0]
[1673393727281,17.0,16.216,16.204,20.0]
[1673393727926,17.0,16.216,16.203,114.8667]
[1673393728135,46.28,16.215,16.203,114.8667]
[1673393728351,17.0,16.214,16.2,118.9923]
[1673393728576,46.28,16.213,16.201,20.0]
[1673393728769,17.0,16.212,16.201,20.0]
[1673393729388,63.28,16.213,16.201,20.0]
[1673393729607,63.28,16.213,16.174,3.5431022]
[1673393729608,313.48,16.21,16.19,20.0]
[1673393729837,313.48,16.21,16.189,4.796]
[1673393729838,25.99,16.2,16.191,230.425]
[1673393730256,17.0,16.199,16.191,230.425]
[1673393730659,1.57643294,16.198,16.191,230.425]
[1673393730882,17.0,16.199,16.191,230.425]
[1673393732148,17.0,16.199,16.192,20.0]
[1673393733702,1.5913444,16.198,16.189,20.0]
[1673393733911,17.0,16.199,16.189,20.0]
[1673393735715,17.0,16.199,16.187,119.0918]
[1673393735927,47.89109504,16.198,16.187,119.0918]
[1673393736140,17.0,16.197,16.187,119.0918]
[1673393736331,2.00771022,16.196,16.187,119.0918]
[1673393738133,2.00771022,16.196,16.188,20.0]
[1673393738344,25.77,16.21,16.19,25.99]
[1673393738545,20.0,16.209,16.192,20.0]
[1673393738972,46.29,16.209,16.192,20.0]
[1673393741097,46.29,16.209,16.193,2.573]
[1673393741922,46.29,16.209,16.195,20.0]
[1673393743932,17.0,16.208,16.195,20.0]
[1673393745622,46.3,16.207,16.195,20.0]
[1673393745928,17.0,16.206,16.195,20.0]
[1673393751816,63.3,16.207,16.195,20.0]
[1673393752656,17.0,16.207,16.195,20.0]
[1673393752841,17.0,16.208,16.195,20.0]
[1673393753062,46.3,16.207,16.195,20.0]
[1673393753263,17.0,16.206,16.195,20.0]
[1673393754115,63.3,16.207,16.195,20.0]
[1673393754960,17.0,16.207,16.195,20.0]
[1673393755173,17.0,16.208,16.195,20.0]
[1673393755486,46.3,16.207,16.195,20.0]
[1673393755801,17.0,16.206,16.195,20.0]
[1673393759151,17.0,16.206,16.196,14.21515846]
[1673393759571,46.29,16.209,16.195,20.0]
[1673393760850,17.0,16.208,16.195,20.0]
[1673393763883,46.3,16.207,16.195,20.0]
[1673393764097,17.0,16.206,16.195,20.0]
[1673393765257,46.29,16.209,16.195,20.0]
[1673393766422,46.28,16.214,16.196,10.48]
[1673393766644,46.27,16.217,16.201,20.0]
[1673393766837,46.27,16.217,16.203,20.0]
[1673393767036,46.27,16.219,16.203,20.0]
[1673393768416,46.27,16.219,16.203,34.21515846]
[1673393768613,46.25,16.225,16.204,13.96]
[1673393768947,46.25,16.226,16.205,20.0]
[1673393769790,46.25,16.226,16.207,20.0]
[1673393770005,37.0,16.225,16.207,20.0]
[1673393770311,25.86,16.22,16.207,20.0]
[1673393770539,63.27,16.219,16.205,20.0]
[1673393771674,20.0,16.218,16.203,20.0]
[1673393771892,63.27,16.217,16.203,20.0]
[1673393772406,63.27,16.217,16.202,116.1673]
[1673393772633,25.99,16.21,16.196,115.2425]
[1673393772944,63.29,16.209,16.196,115.2425]
[1673393778403,20.0,16.208,16.196,115.2425]
[1673393778715,247.3,16.207,16.191,14.21515846]
[1673393778914,247.3,16.207,16.184,108.9121]
[1673393778915,25.99,16.2,16.184,108.9121]
[1673393779126,46.32,16.199,16.184,108.9121]
[1673393779342,17.0,16.198,16.184,108.9121]
[1673393779552,46.33,16.197,16.184,108.9121]
[1673393779764,17.0,16.196,16.184,108.9121]
[1673393780814,17.0,16.196,16.185,20.0]
[1673393789649,46.32,16.199,16.185,20.0]
[1673393790489,26.06,16.2,16.185,20.0]
[1673393790891,46.32,16.199,16.185,20.0]
[1673393791765,46.32,16.199,16.184,108.9121]
[1673393792071,17.0,16.198,16.185,20.0]
[1673393794783,17.0,16.199,16.185,20.0]
[1673393796379,46.33,16.198,16.185,20.0]
[1673393796581,17.0,16.197,16.185,20.0]
[1673393797103,17.0,16.198,16.185,20.0]
[1673393798268,17.0,16.198,16.184,108.9121]
[1673393798573,46.33,16.197,16.184,108.9121]
[1673393798797,17.0,16.196,16.184,108.9121]
[1673393799422,63.33,16.197,16.184,108.9121]
[1673393801851,17.0,16.197,16.184,108.9121]
[1673393802057,17.0,16.198,16.184,108.9121]
[1673393802268,46.33,16.197,16.184,108.9121]
[1673393802485,17.0,16.196,16.184,108.9121]
[1673393802914,46.32,16.199,16.185,20.0]
[1673393804259,17.0,16.198,16.185,20.0]
[1673393805438,130.08,16.2,16.185,20.0]
[1673393805750,26.06,16.2,16.185,20.0]
[1673393806371,46.32,16.199,16.185,20.0]
[1673393806575,26.06,16.2,16.185,20.0]
[1673393806801,17.0,16.199,16.185,20.0]
[1673393807010,63.32,16.199,16.185,20.0]
[1673393811426,63.32,16.199,16.185,18.5]
[1673393814058,20.0,16.198,16.185,18.5]
[1673393814388,17.0,16.197,16.185,18.5]
[1673393814576,17.0,16.198,16.185,18.5]
[1673393816573,46.32,16.199,16.185,18.5]
[1673393816800,46.31,16.204,16.185,18.5]
[1673393816981,46.31,16.205,16.185,18.5]
[1673393817186,20.0,16.204,16.185,18.5]
[1673393817501,46.31,16.203,16.185,18.5]
[1673393817713,17.0,16.202,16.185,18.5]
[1673393817939,17.0,16.202,16.186,14.21515846]
[1673393817940,46.32,16.201,16.186,14.21515846]
[1673393818153,17.0,16.2,16.187,20.0]
[1673393818477,46.29,16.209,16.191,20.0]
[1673393818782,46.29,16.209,16.193,20.0]
[1673393818970,20.0,16.208,16.193,20.0]
[1673393819607,46.3,16.207,16.193,20.0]
[1673393820250,17.0,16.206,16.193,20.0]
[1673393821095,46.31,16.205,16.193,20.0]
[1673393821411,17.0,16.204,16.193,20.0]
[1673393822473,17.0,16.204,16.192,114.5623]
[1673393823618,17.0,16.204,16.191,113.8635]
[1673393823619,25.99,16.2,16.191,113.8635]
[1673393823811,63.32,16.199,16.191,113.8635]
[1673393824461,247.32,16.199,16.186,112.1446]
[1673393824657,20.0,16.198,16.186,112.1446]
[1673393824988,63.33,16.197,16.186,112.1446]
[1673393825391,17.0,16.197,16.186,112.1446]
[1673393825614,17.0,16.198,16.186,112.1446]
[1673393826049,17.0,16.198,16.187,20.0]
[1673393828678,46.33,16.197,16.187,20.0]
[1673393828877,17.0,16.196,16.187,20.0]
[1673393831000,46.32,16.199,16.187,20.0]
[1673393831182,25.99,16.2,16.187,20.0]
[1673393832248,25.99,16.2,16.183,20.0]
[1673393832460,66.32,16.199,16.183,20.0]
[1673393833413,17.0,16.198,16.183,20.0]
[1673393833598,46.33,16.197,16.183,20.0]
[1673393833817,17.0,16.196,16.183,20.0]
[1673393834458,46.32,16.199,16.183,20.0]
[1673393835821,17.0,16.198,16.183,20.0]
[1673393836889,46.33,16.197,16.183,20.0]
[1673393837074,17.0,16.196,16.183,20.0]
[1673393839809,46.32,16.199,16.183,20.0]
[1673393841306,17.0,16.198,16.183,20.0]
[1673393851494,46.32,16.199,16.183,33.4045811]
[1673393851710,46.31,16.204,16.185,20.0]
[1673393851915,46.31,16.204,16.186,17.0]
[1673393852133,64.85825296,16.208,16.188,20.0]
[1673393852347,46.3,16.208,16.189,0.76157151]
[1673393852663,46.3,16.208,16.189,20.0]
[1673393852880,46.3,16.208,16.19,20.0]
[1673393853087,46.3,16.208,16.192,20.64774781]
[1673393853283,17.0,16.207,16.192,20.0]
[1673393858245,17.0,16.207,16.193,0.63087825]
[1673393858555,17.0,16.207,16.192,20.0]
[1673393858957,46.3,16.208,16.192,20.0]
[1673393859165,46.29,16.209,16.193,0.85375869]
[1673393859410,46.29,16.209,16.194,2.18]
[1673393859595,46.29,16.209,16.195,0.85375869]
[1673393860136,46.29,16.209,16.194,0.87965254]
[1673393861720,20.0,16.215,16.195,20.0]
[1673393861911,83.28,16.214,16.196,108.6558]
[1673393862110,83.28,16.214,16.197,20.0]
[1673393862863,20.0,16.213,16.196,108.6558]
[1673393863072,25.98,16.21,16.196,108.6558]
[1673393863396,63.29,16.209,16.196,108.6558]
[1673393866019,46.29,16.209,16.197,20.0]
[1673393867912,17.0,16.208,16.197,20.0]
[1673393871263,17.0,16.209,16.197,20.0]
[1673393871476,46.3,16.208,16.197,20.0]
[1673393871685,17.0,16.207,16.197,20.0]
[1673393875067,17.0,16.207,16.196,108.6558]
[1673393875282,18.55825296,16.206,16.191,20.0]
[1673393875464,25.98,16.2,16.189,20.0]
[1673393875674,25.98,16.2,16.184,110.9686]
[1673393875675,46.32,16.199,16.184,110.9686]
[1673393875899,17.0,16.198,16.18,20.0]
[1673393876226,46.33,16.197,16.182,111.0167]
[1673393876428,17.0,16.196,16.182,111.0167]
[1673393876630,46.33,16.195,16.182,111.0167]
[1673393876846,17.0,16.194,16.183,20.0]
[1673393877042,46.34,16.193,16.183,20.0]
[1673393877371,17.0,16.192,16.183,20.0]
[1673393877774,17.0,16.193,16.183,20.0]
[1673393878530,25.97,16.19,16.183,20.0]
[1673393878717,17.0,16.189,16.183,20.0]
[1673393879882,17.0,16.189,16.178,20.0]
[1673393880082,17.0,16.189,16.175,20.0]
[1673393880083,17.0,16.189,16.176,118.2373]
[1673393880935,46.34,16.194,16.176,132.69668588]
[1673393881167,17.0,16.193,16.176,132.69668588]
[1673393881355,17.0,16.193,16.177,20.0]
[1673393881561,17.0,16.193,16.178,20.0]
[1673393881921,17.0,16.193,16.179,20.0]
[1673393884516,17.0,16.193,16.18,20.0]
[1673393884719,17.0,16.193,16.181,20.0]
[1673393884922,17.0,16.193,16.182,117.5653]
[1673393886511,17.0,16.193,16.181,20.0]
[1673393886723,17.0,16.193,16.18,20.0]